bitfinex/quotes_SOLUSD_20241102
["timestamp","ask_amount","ask_price","bid_price","bid_amount"]
[1730551771869,6.0521,165.23,165.14,21.8063603]
[1730551772032,11.26749617,165.21,165.16,11.26749617]
[1730551772233,11.26749617,165.21,165.15,11.26749617]
[1730551772739,11.26749617,165.23,165.18,11.26749617]
[1730551773254,11.26749617,165.22,165.18,23.776884]
[1730551773450,11.26749617,165.23,165.18,41.09818017]
[1730551773836,11.26749617,165.23,165.18,29.830684]
[1730551774356,11.26749617,165.23,165.18,41.09818017]
[1730551774550,11.26749617,165.22,165.18,29.830684]
[1730551774857,11.26749617,165.23,165.18,29.830684]
[1730551775165,11.26749617,165.23,165.18,41.09818017]
[1730551775855,11.26749617,165.23,165.18,29.830684]
[1730551776051,17.31959617,165.23,165.18,29.830684]
[1730551776453,11.26749617,165.22,165.18,29.830684]
[1730551776660,17.31959617,165.23,165.18,29.830684]
[1730551776980,11.26749617,165.22,165.18,44.965684]
[1730551777478,11.26749617,165.23,165.18,44.965684]
[1730551777666,11.26749617,165.22,165.18,38.911884]
[1730551778588,17.32009617,165.22,165.18,38.911884]
[1730551778807,6.0526,165.22,165.18,38.911884]
[1730551780357,6.0521,165.23,165.18,50.17938017]
[1730551780780,11.26749617,165.22,165.17,23.776884]
[1730551781082,11.26749617,165.22,165.17,35.04438017]
[1730551782063,17.31959617,165.23,165.17,35.04438017]
[1730551782459,11.26749617,165.22,165.17,41.09868017]
[1730551783273,17.31959617,165.23,165.17,41.09868017]
[1730551783471,11.26749617,165.21,165.17,23.776884]
[1730551783671,6.0521,165.23,165.19,11.26749617]
[1730551785780,6.0521,165.23,165.18,11.26749617]
[1730551785972,11.26749617,165.22,165.17,26.40339617]
[1730551786697,17.31959617,165.23,165.17,26.40339617]
[1730551787896,6.0521,165.23,165.18,35.04438017]
[1730551788789,17.31959617,165.23,165.18,35.04438017]
[1730551789492,6.0521,165.23,165.18,35.04438017]
[1730551789688,17.31959617,165.23,165.18,35.04438017]
[1730551790082,6.0521,165.23,165.18,35.04438017]
[1730551790679,17.31959617,165.23,165.18,35.04438017]
[1730551791990,17.31959617,165.23,165.18,11.26749617]
[1730551792196,11.26749617,165.22,165.17,26.40339617]
[1730551793184,17.31959617,165.23,165.17,32.45769617]
[1730551793588,6.0521,165.23,165.18,11.26749617]
[1730551794394,6.0521,165.23,165.18,17.32139617]
[1730551794773,11.26749617,165.22,165.18,23.776884]
[1730551794973,17.31959617,165.23,165.18,11.26749617]
[1730551795215,6.0521,165.23,165.18,11.26749617]
[1730551795868,17.31959617,165.23,165.18,11.26749617]
[1730551796066,17.31959617,165.23,165.17,41.09838017]
[1730551796499,6.0521,165.23,165.18,11.26749617]
[1730551796791,17.31959617,165.23,165.18,11.26749617]
[1730551797395,17.31959617,165.23,165.17,56.23428017]
[1730551797902,17.31959617,165.23,165.18,11.26749617]
[1730551798080,6.0521,165.23,165.18,11.26749617]
[1730551798280,32.58769617,165.26,165.2,11.26749617]
[1730551798494,32.58769617,165.26,165.21,11.26749617]
[1730551798784,32.58769617,165.26,165.2,11.26749617]
[1730551798990,32.58769617,165.26,165.18,21.1887]
[1730551798991,11.26749617,165.23,165.18,32.45619617]
[1730551799606,11.26749617,165.24,165.18,32.45619617]
[1730551799905,6.0521,165.23,165.18,32.45619617]
[1730551800090,17.31959617,165.23,165.18,32.45619617]
[1730551800471,11.26749617,165.25,165.2,11.26749617]
[1730551800681,27.3713,165.26,165.21,11.26749617]
[1730551800979,6.0511,165.26,165.21,11.26749617]
[1730551802103,11.26749617,165.25,165.2,17.32049617]
[1730551802409,11.26749617,165.23,165.18,11.26749617]
[1730551802576,11.26749617,165.24,165.18,11.26749617]
[1730551803072,11.26749617,165.23,165.18,11.26749617]
[1730551803702,11.26749617,165.24,165.18,11.26749617]
[1730551804000,17.31959617,165.23,165.18,17.32139617]
[1730551804381,17.31959617,165.23,165.18,6.0539]
[1730551804597,11.26749617,165.22,165.18,6.0539]
[1730551804794,11.26749617,165.2,165.15,6.0551]
[1730551805007,11.26749617,165.2,165.14,27.01815647]
[1730551805210,11.26749617,165.19,165.14,27.01815647]
[1730551806079,17.32119617,165.19,165.14,33.07355647]
[1730551806275,17.32119617,165.19,165.14,0.6123603]
[1730551806701,11.26749617,165.18,165.14,0.6123603]
[1730551807116,11.26749617,165.17,165.14,0.6123603]
[1730551807319,11.26749617,165.17,165.13,0.55454545]
[1730551807320,11.26749617,165.15,165.13,0.55454545]
[1730551807528,90.0,165.14,165.13,0.55454545]
[1730551807891,96.0554,165.14,165.13,0.55454545]
[1730551808321,37.32289617,165.14,165.13,0.55454545]
[1730551808705,17.32289617,165.14,165.13,0.55454545]
[1730551809125,70.0,165.18,165.13,0.55454545]
[1730551809126,11.26749617,165.18,165.13,0.55454545]
[1730551809420,11.26749617,165.14,165.13,0.55454545]
[1730551809600,70.0,165.18,165.13,0.55454545]
[1730551809808,11.26749617,165.15,165.13,0.55454545]
[1730551810202,11.26749617,165.14,165.13,0.55454545]
[1730551811619,123.53349617,165.14,165.13,0.55454545]
[1730551811811,103.53349617,165.14,165.13,0.55454545]
[1730551812118,147.41038017,165.14,165.13,0.55454545]
[1730551812330,129.58889617,165.14,165.13,0.55454545]
[1730551812498,33.53349617,165.14,165.13,0.55454545]
[1730551812701,11.26749617,165.15,165.13,0.55454545]
[1730551813121,11.26749617,165.17,165.13,0.55454545]
[1730551814020,32.96039617,165.18,165.13,6.61024545]
[1730551814326,11.26749617,165.16,165.13,0.55454545]
[1730551814901,26.90639617,165.18,165.13,6.61024545]
[1730551815403,11.26749617,165.17,165.13,6.61024545]
[1730551815608,15.6389,165.18,165.13,6.61024545]
[1730551815609,11.26749617,165.16,165.13,6.61024545]
[1730551815812,11.26749617,165.16,165.13,0.55454545]
[1730551816015,11.26749617,165.15,165.13,0.55454545]
[1730551816812,17.32229617,165.16,165.13,0.55454545]
[1730551817518,11.26749617,165.16,165.13,0.55454545]
[1730551817697,17.32179617,165.17,165.13,0.55454545]
[1730551817905,11.26749617,165.16,165.13,0.55454545]
[1730551818104,6.0543,165.17,165.13,0.55454545]
[1730551818105,11.26749617,165.15,165.13,0.55454545]
[1730551818407,11.26749617,165.14,165.13,0.55454545]
[1730551819817,101.26749617,165.14,165.13,0.55454545]
[1730551820421,107.32289617,165.14,165.13,0.55454545]
[1730551821230,131.19978017,165.14,165.13,0.55454545]
[1730551822250,107.32289617,165.14,165.13,0.55454545]
[1730551822409,31.26749617,165.14,165.13,0.55454545]
[1730551822607,11.26749617,165.14,165.13,0.55454545]
[1730551823139,11.26749617,165.16,165.13,6.61034545]
[1730551823323,11.26749617,165.2,165.15,11.26749617]
[1730551823520,85.6389,165.22,165.13,21.74984545]
[1730551823521,11.26749617,165.21,165.16,11.26749617]
[1730551823734,11.26749617,165.22,165.17,11.26749617]
[1730551823935,11.26749617,165.24,165.19,11.26749617]
[1730551824136,6.0508,165.27,165.21,11.26749617]
[1730551824343,17.31749617,165.29,165.24,11.26749617]
[1730551824643,17.58956092,165.29,165.24,17.58956092]
[1730551825136,17.58956092,165.28,165.23,17.58956092]
[1730551825736,33.15543256,165.31,165.25,17.58956092]
[1730551826036,17.58956092,165.31,165.26,17.58956092]
[1730551826221,17.58956092,165.34,165.28,17.58956092]
[1730551826622,17.58956092,165.34,165.29,17.58956092]
[1730551827132,17.58956092,165.32,165.27,17.58956092]
[1730551827332,17.58956092,165.34,165.29,17.58956092]
[1730551827644,17.58956092,165.36,165.31,17.58956092]
[1730551827814,17.58956092,165.37,165.32,17.58956092]
[1730551828124,17.58956092,165.38,165.32,17.58956092]
[1730551828327,17.58956092,165.37,165.31,17.58956092]
[1730551828514,17.58956092,165.37,165.32,17.58956092]
[1730551828714,17.58956092,165.37,165.31,17.58956092]
[1730551828927,17.58956092,165.37,165.3,21.1736]
[1730551828928,17.58956092,165.35,165.3,15.124]
[1730551829128,17.58956092,165.34,165.3,15.124]
[1730551829430,17.58956092,165.35,165.3,15.124]
[1730551829639,17.58956092,165.36,165.31,17.58956092]
[1730551829826,17.58956092,165.36,165.3,21.1736]
[1730551829827,17.58956092,165.38,165.33,17.58956092]
[1730551830037,23.63506092,165.41,165.35,17.58956092]
[1730551830222,17.58956092,165.41,165.36,17.58956092]
[1730551830422,17.58956092,165.42,165.37,17.58956092]
[1730551830718,17.58956092,165.44,165.39,17.58956092]
[1730551830934,70.0,165.46,165.4,17.58956092]
[1730551830935,17.58956092,165.46,165.4,17.58956092]
[1730551831112,17.58956092,165.47,165.42,17.58956092]
[1730551831330,17.58956092,165.48,165.43,17.58956092]
[1730551831511,17.58956092,165.46,165.41,17.58956092]
[1730551831752,17.58956092,165.45,165.4,17.58956092]
[1730551832035,17.58956092,165.44,165.39,17.58956092]
[1730551832238,17.58956092,165.42,165.36,17.58956092]
[1730551832767,17.58956092,165.39,165.34,17.58956092]
[1730551832948,17.58956092,165.38,165.33,32.71036092]
[1730551833113,17.58956092,165.39,165.34,17.58956092]
[1730551833315,17.58956092,165.38,165.32,17.58956092]
[1730551833617,17.58956092,165.39,165.33,17.58956092]
[1730551833818,17.58956092,165.39,165.34,17.58956092]
[1730551834032,17.58956092,165.37,165.31,17.58956092]
[1730551834235,17.58956092,165.36,165.31,17.58956092]
[1730551834441,17.58956092,165.37,165.31,17.58956092]
[1730551834734,17.58956092,165.37,165.3,15.124]
[1730551834936,23.63656092,165.37,165.31,17.58956092]
[1730551835135,17.58956092,165.35,165.3,32.71356092]
[1730551835643,17.58956092,165.36,165.31,17.58956092]
[1730551837324,23.63656092,165.37,165.31,17.58956092]
[1730551837687,17.58956092,165.36,165.3,32.71356092]
[1730551837884,17.58956092,165.36,165.31,17.58956092]
[1730551838190,23.63656092,165.37,165.31,17.58956092]
[1730551838783,23.63656092,165.37,165.32,17.58956092]
[1730551838997,23.63506092,165.41,165.36,17.58956092]
[1730551839401,17.58956092,165.4,165.34,17.58956092]
[1730551839994,17.58956092,165.39,165.34,17.58956092]
[1730551840477,17.58956092,165.36,165.3,32.71356092]
[1730551840987,17.58956092,165.37,165.32,17.58956092]
[1730551841339,23.63596092,165.39,165.33,17.58956092]
[1730551841492,17.58956092,165.38,165.33,17.58956092]
[1730551841659,17.58956092,165.36,165.31,17.58956092]
[1730551842082,17.58956092,165.37,165.32,17.58956092]
[1730551842860,17.58956092,165.36,165.3,32.71356092]
[1730551843063,17.58956092,165.34,165.29,17.58956092]
[1730551843383,17.58956092,165.35,165.29,17.58956092]
[1730551844113,17.58956092,165.35,165.3,17.58956092]
[1730551844471,17.58956092,165.33,165.27,17.58956092]
[1730551844676,17.58956092,165.33,165.27,23.64026092]
[1730551844873,17.58956092,165.32,165.27,23.64026092]
[1730551845070,17.58956092,165.31,165.26,15.1269]
[1730551845378,17.58956092,165.31,165.26,21.1779]
[1730551845578,93.63716092,165.36,165.24,17.58956092]
[1730551845579,17.58956092,165.29,165.24,17.58956092]
[1730551845783,70.0,165.34,165.26,17.58956092]
[1730551845784,17.58956092,165.32,165.26,17.58956092]
[1730551846271,17.58956092,165.32,165.27,17.58956092]
[1730551846679,17.58956092,165.32,165.26,17.58956092]
[1730551846856,17.58956092,165.31,165.26,17.58956092]
[1730551847976,17.58956092,165.32,165.26,23.64026092]
[1730551848192,17.58956092,165.33,165.28,17.58956092]
[1730551848679,17.58956092,165.34,165.28,17.58956092]
[1730551848880,17.58956092,165.33,165.28,17.58956092]
[1730551849084,17.58956092,165.32,165.27,17.58956092]
[1730551849267,17.58956092,165.33,165.27,23.63986092]
[1730551849669,17.58956092,165.33,165.27,38.76656092]
[1730551850044,6.1309,165.38,165.31,17.58956092]
[1730551850045,17.58956092,165.37,165.31,17.58956092]
[1730551850249,17.58956092,165.37,165.32,17.58956092]
[1730551850447,17.58956092,165.38,165.32,17.58956092]
[1730551850649,17.58956092,165.38,165.29,0.12549]
[1730551850650,17.58956092,165.38,165.33,17.58956092]
[1730551851574,17.58956092,165.37,165.33,6.0482]
[1730551851782,17.58956092,165.36,165.33,6.0482]
[1730551852376,17.58956092,165.36,165.31,17.58956092]
[1730551852561,17.58956092,165.36,165.33,15.1212]
[1730551853153,17.58956092,165.37,165.33,15.1212]
[1730551853364,85.2414,165.42,165.33,15.1212]
[1730551853365,17.58956092,165.4,165.35,17.58956092]
[1730551853776,17.58956092,165.39,165.34,17.58956092]
[1730551854680,17.58956092,165.39,165.35,6.0477]
[1730551854877,17.58956092,165.4,165.35,6.0477]
[1730551855297,17.58956092,165.38,165.35,6.0477]
[1730551855458,6.0457,165.41,165.33,21.1695]
[1730551855459,17.58956092,165.36,165.33,21.1695]
[1730551855793,17.58956092,165.39,165.34,17.58956092]
[1730551855960,17.58956092,165.4,165.34,17.58956092]
[1730551856380,17.58956092,165.41,165.35,17.58956092]
[1730551856686,23.63506092,165.42,165.37,17.58956092]
[1730551856890,17.58956092,165.42,165.37,17.58956092]
[1730551857876,17.58956092,165.39,165.34,17.58956092]
[1730551858179,17.58956092,165.38,165.33,41.36644492]
[1730551858371,17.58956092,165.4,165.35,17.58956092]
[1730551858677,17.58956092,165.39,165.34,17.58956092]
[1730551859187,17.58956092,165.4,165.35,17.58956092]
[1730551859763,17.58956092,165.41,165.36,41.36644492]
[1730551860275,17.58956092,165.4,165.36,23.776884]
[1730551860578,17.58956092,165.38,165.34,21.1684]
[1730551862183,17.58956092,165.35,165.3,17.58956092]
[1730551862371,17.58956092,165.31,165.26,23.64056092]
[1730551862565,17.58956092,165.29,165.25,31.0355]
[1730551862799,17.58956092,165.28,165.23,23.64136092]
[1730551862967,17.58956092,165.28,165.23,6.0518]
[1730551863289,17.58956092,165.28,165.22,21.30929]
[1730551863465,17.58956092,165.28,165.22,38.89885092]
[1730551863665,17.58956092,165.27,165.22,38.89885092]
[1730551863870,17.58956092,165.27,165.22,38.77336092]
[1730551864184,6.05,165.29,165.24,17.58956092]
[1730551864185,17.58956092,165.29,165.24,17.58956092]
[1730551864384,23.63916092,165.3,165.25,17.58956092]
[1730551864585,17.58956092,165.29,165.24,17.58956092]
[1730551864763,17.58956092,165.27,165.22,38.77336092]
[1730551865101,17.58956092,165.26,165.23,23.776884]
[1730551865385,17.58956092,165.26,165.22,21.1838]
[1730551865386,17.58956092,165.25,165.22,21.1838]
[1730551865608,17.58956092,165.26,165.22,21.1838]
[1730551865880,17.58956092,165.29,165.23,17.58956092]
[1730551866083,17.58956092,165.29,165.24,17.58956092]
[1730551866282,17.58956092,165.29,165.23,17.58956092]
[1730551866787,17.58956092,165.28,165.23,17.58956092]
[1730551866973,17.58956092,165.27,165.23,6.0518]
[1730551868280,17.58956092,165.28,165.23,17.58956092]
[1730551869358,17.58956092,165.27,165.24,6.0518]
[1730551869763,17.58956092,165.26,165.22,21.1834]
[1730551870307,17.58956092,165.27,165.22,38.77296092]
[1730551871085,17.58956092,165.26,165.22,15.1313]
[1730551871274,17.58956092,165.25,165.22,15.1313]
[1730551871595,17.58956092,165.24,165.21,23.776884]
[1730551871885,23.63986092,165.28,165.2,23.64246092]
[1730551871886,17.58956092,165.25,165.2,23.64246092]
[1730551872125,17.58956092,165.26,165.21,17.58956092]
[1730551872394,17.58956092,165.25,165.2,32.72266092]
[1730551872687,17.58956092,165.26,165.2,38.77586092]
[1730551872990,23.64086092,165.26,165.2,38.77586092]
[1730551874395,23.64086092,165.26,165.21,17.58956092]
[1730551874692,17.58956092,165.25,165.2,15.1331]
[1730551875494,17.58956092,165.24,165.2,15.1331]
[1730551875664,17.58956092,165.25,165.2,15.1331]
[1730551876598,17.58956092,165.25,165.2,21.1863]
[1730551876973,23.64086092,165.26,165.2,38.77586092]
[1730551877680,17.58956092,165.24,165.2,15.1331]
[1730551877869,17.58956092,165.23,165.2,15.1331]
[1730551878069,17.58956092,165.23,165.19,23.776884]
[1730551878285,17.58956092,165.22,165.18,23.776884]
[1730551878487,17.58956092,165.21,165.17,6.0543]
[1730551878693,17.58956092,165.19,165.14,21.194]
[1730551878893,17.58956092,165.17,165.14,15.1386]
[1730551879291,21.1741,165.22,165.14,21.194]
[1730551879292,17.58956092,165.19,165.14,21.194]
[1730551879476,17.58956092,165.2,165.15,17.58956092]
[1730551879668,17.58956092,165.2,165.16,6.0547]
[1730551879893,17.58956092,165.21,165.16,38.78106092]
[1730551880376,17.58956092,165.21,165.16,21.1915]
[1730551880564,17.58956092,165.2,165.16,21.1915]
[1730551881198,17.58956092,165.18,165.14,23.776884]
[1730551881404,17.58956092,165.16,165.13,0.55454545]
[1730551881699,17.58956092,165.2,165.13,0.55454545]
[1730551881700,17.58956092,165.14,165.13,0.55454545]
[1730551881899,17.58956092,165.15,165.13,0.55454545]
[1730551882279,17.58956092,165.14,165.13,0.55454545]
[1730551882979,6.0536,165.19,165.13,0.55454545]
[1730551882980,17.58956092,165.15,165.13,0.55454545]
[1730551883193,17.58956092,165.16,165.13,0.55454545]
[1730551883375,17.58956092,165.17,165.13,0.55454545]
[1730551884185,17.58956092,165.17,165.13,6.61024545]
[1730551884585,17.58956092,165.18,165.13,39.33930637]
[1730551884991,17.58956092,165.17,165.13,21.74974545]
[1730551885495,17.58956092,165.16,165.13,21.74974545]
[1730551886178,17.58956092,165.16,165.13,15.69404545]
[1730551886896,17.58956092,165.14,165.13,0.55454545]
[1730551888387,17.58956092,165.15,165.13,0.55454545]
[1730551891796,17.58956092,165.14,165.13,0.55454545]
[1730551893799,23.64496092,165.14,165.13,0.55454545]
[1730551894687,17.58956092,165.14,165.13,0.55454545]
[1730551894886,23.64496092,165.14,165.13,0.55454545]
[1730551895202,17.58956092,165.16,165.13,0.55454545]
[1730551895384,17.58956092,165.15,165.13,0.55454545]
[1730551896092,87.58956092,165.2,165.13,0.55454545]
[1730551896093,17.58956092,165.14,165.13,0.55454545]
[1730551896878,37.58956092,165.14,165.13,0.55454545]
[1730551897706,143.62894492,165.14,165.13,0.55454545]
[1730551898008,161.21850584,165.14,165.13,0.55454545]
[1730551898385,70.0,165.12,165.03,21.2079]
[1730551898604,28.22122583,165.06,165.03,15.1485]
[1730551898808,28.22122583,165.08,165.03,43.36972583]
[1730551899486,28.22122583,165.08,165.03,49.42922583]
[1730551900489,28.22122583,165.08,165.03,21.208]
[1730551900801,34.27902583,165.08,165.03,21.208]
[1730551901501,28.22122583,165.08,165.03,49.42922583]
[1730551901702,34.27892583,165.08,165.03,21.208]
[1730551902286,28.22122583,165.07,165.03,21.208]
[1730551902896,34.27892583,165.08,165.03,21.208]
[1730551903219,28.22122583,165.1,165.04,28.22122583]
[1730551903389,28.22122583,165.11,165.05,28.22122583]
[1730551904083,28.22122583,165.12,165.07,28.22122583]
[1730551905705,28.22122583,165.09,165.04,28.22122583]
[1730551905885,28.22122583,165.08,165.04,15.1477]
[1730551906301,28.22122583,165.09,165.04,43.36892583]
[1730551906498,28.22122583,165.1,165.04,43.36892583]
[1730551907216,28.22122583,165.12,165.07,28.22122583]
[1730551908318,28.22122583,165.12,165.07,49.42392583]
[1730551908817,28.22122583,165.13,165.08,28.22122583]
[1730551909026,28.22122583,165.16,165.1,28.22122583]
[1730551909190,28.22122583,165.16,165.11,28.22122583]
[1730551909604,6.0545,165.17,165.11,28.22122583]
[1730551909605,28.22122583,165.17,165.11,28.22122583]
[1730551909806,28.22122583,165.17,165.07,27.7117]
[1730551909807,28.22122583,165.17,165.12,28.22122583]
[1730551910117,28.22122583,165.17,165.11,28.22122583]
[1730551910329,28.22122583,165.17,165.12,6.0562]
[1730551910610,34.27552583,165.17,165.12,6.0562]
[1730551911627,28.22122583,165.14,165.11,15.1412]
[1730551911834,28.22122583,165.13,165.09,29.833784]
[1730551912342,28.22122583,165.13,165.09,6.0569]
[1730551913009,28.22122583,165.14,165.09,34.27812583]
[1730551913733,28.22122583,165.14,165.09,49.42132583]
[1730551913937,28.22122583,165.14,165.09,21.2001]
[1730551914233,28.22122583,165.14,165.09,49.42132583]
[1730551915236,28.22122583,165.15,165.1,28.22122583]
[1730551916212,28.22122583,165.16,165.11,21.1979]
[1730551919026,28.22122583,165.15,165.11,21.1979]
[1730551919625,28.22122583,165.14,165.11,21.1979]
[1730551919924,28.22122583,165.14,165.09,28.22122583]
[1730551920130,28.22122583,165.15,165.1,51.99810983]
[1730551920345,28.22122583,165.16,165.1,51.99810983]
[1730551920526,17.6179792,165.18,165.13,17.6179792]
[1730551920730,39.9287792,165.19,165.13,17.6179792]
[1730551921133,17.6179792,165.18,165.13,17.6179792]
[1730551921335,17.6179792,165.19,165.14,17.6179792]
[1730551921517,6.2587,165.22,165.16,17.6179792]
[1730551921518,23.6706792,165.22,165.16,17.6179792]
[1730551921718,17.6179792,165.22,165.16,17.6179792]
[1730551921924,17.6179792,165.21,165.16,17.6179792]
[1730551922123,17.6179792,165.2,165.15,17.6179792]
[1730551922330,17.6179792,165.2,165.16,23.776884]
[1730551923342,17.6179792,165.21,165.16,29.831184]
[1730551923544,17.6179792,165.22,165.17,17.6179792]
[1730551923835,17.6179792,165.25,165.2,17.6179792]
[1730551924637,17.6179792,165.25,165.19,17.6179792]
[1730551925349,23.6693792,165.25,165.19,23.6714792]
[1730551925842,17.6179792,165.23,165.17,17.7434692]
[1730551926026,17.6179792,165.22,165.18,23.776884]
[1730551926337,17.6179792,165.23,165.18,23.776884]
[1730551926542,17.6179792,165.23,165.18,41.3948632]
[1730551926771,17.6179792,165.22,165.16,32.7547792]
[1730551927087,17.6179792,165.23,165.18,17.6179792]
[1730551927977,23.6694792,165.25,165.2,17.6179792]
[1730551928473,17.6179792,165.21,165.16,17.6179792]
[1730551928644,17.6179792,165.2,165.16,23.776884]
[1730551929162,17.6179792,165.2,165.15,17.6179792]
[1730551929471,17.6179792,165.19,165.14,41.3948632]
[1730551929654,17.6179792,165.18,165.13,17.6179792]
[1730551930175,17.6179792,165.17,165.12,17.6179792]
[1730551930475,17.6179792,165.16,165.11,17.6179792]
[1730551931073,17.6179792,165.17,165.12,17.6179792]
[1730551931779,23.6722792,165.17,165.12,17.6179792]
[1730551932158,23.6722792,165.17,165.11,41.6458432]
[1730551932359,17.6179792,165.16,165.11,41.6458432]
[1730551932666,29.1,165.15,165.12,17.6179792]
[1730551933552,29.1,165.15,165.11,41.6458432]
[1730551934364,46.7179792,165.15,165.1,41.3948632]
[1730551934571,52.7732792,165.15,165.1,41.3948632]
[1730551935380,17.6179792,165.14,165.1,23.776884]
[1730551935673,35.1553,165.15,165.11,17.6179792]
[1730551935972,29.1,165.15,165.14,17.6179792]
[1730551937070,29.1,165.15,165.14,47.4502632]
[1730551938379,29.1,165.15,165.14,41.3948632]
[1730551938565,29.1,165.15,165.14,23.776884]
[1730551939079,29.1,165.15,165.13,23.776884]
[1730551939274,29.1,165.15,165.12,23.776884]
[1730551939471,35.1551,165.15,165.11,17.6179792]
[1730551939676,52.7730792,165.15,165.09,17.6179792]
[1730551940182,52.7730792,165.15,165.1,17.6179792]
[1730551940383,29.1,165.15,165.11,17.6179792]
[1730551940683,70.0,165.21,165.09,0.12549]
[1730551940684,17.6179792,165.17,165.12,17.6179792]
[1730551940974,17.6179792,165.17,165.08,21.2016]
[1730551940975,6.0544,165.17,165.13,17.6179792]
[1730551941375,6.0544,165.17,165.12,17.6179792]
[1730551941760,23.6723792,165.17,165.12,17.6179792]
[1730551941962,23.6723792,165.17,165.11,38.8154792]
[1730551942167,17.6179792,165.15,165.1,23.776884]
[1730551942381,17.6179792,165.14,165.1,23.776884]
[1730551943079,17.6179792,165.14,165.09,23.6752792]
[1730551943378,17.6179792,165.13,165.09,6.0573]
[1730551943578,17.6179792,165.13,165.09,0.25098]
[1730551944286,17.6179792,165.13,165.09,24.027864]
[1730551945400,17.6179792,165.13,165.09,30.084864]
[1730551946883,17.6179792,165.14,165.09,62.8460432]
[1730551947087,17.6179792,165.15,165.11,23.776884]
[1730551947386,6.4358,165.17,165.11,23.776884]
[1730551947387,17.6179792,165.13,165.11,23.776884]
[1730551947685,17.6179792,165.14,165.1,23.776884]
[1730551948183,17.6179792,165.14,165.11,6.0565]
[1730551948684,17.6179792,165.14,165.1,29.833784]
[1730551948865,23.6733792,165.15,165.1,29.833784]
[1730551949185,23.6733792,165.15,165.1,44.976084]
[1730551949881,17.6179792,165.13,165.1,44.976084]
[1730551952592,17.6179792,165.17,165.11,0.25098]
[1730551952782,17.6179792,165.19,165.14,17.6179792]
[1730551952975,15.7106,165.22,165.15,41.5203532]
[1730551952976,17.6179792,165.21,165.15,41.5203532]
[1730551953367,33.3285792,165.22,165.17,41.3948632]
[1730551953687,17.6179792,165.22,165.17,17.6179792]
[1730551954188,17.6179792,165.19,165.15,0.12549]
[1730551954390,17.6179792,165.18,165.15,0.12549]
[1730551954560,17.6179792,165.17,165.14,23.776884]
[1730551955365,17.6179792,165.15,165.13,15.139]
[1730551955979,17.6179792,165.14,165.1,6.0569]
[1730551956180,17.6179792,165.13,165.1,6.0569]
[1730551956369,21.3913,165.18,165.1,6.0569]
[1730551956370,17.6179792,165.14,165.1,6.0569]
[1730551956694,17.6179792,165.15,165.1,38.8171792]
[1730551957494,17.6179792,165.15,165.11,23.776884]
[1730551957694,17.6179792,165.13,165.1,15.1423]
[1730551961180,17.6179792,165.11,165.08,23.776884]
[1730551961390,17.6179792,165.09,165.07,15.1449]
[1730551961571,6.0555,165.14,165.07,15.1449]
[1730551961572,17.6179792,165.1,165.07,15.1449]
[1730551961883,17.6179792,165.11,165.07,21.2029]
[1730551962290,17.6179792,165.1,165.07,21.2029]
[1730551962679,17.6179792,165.11,165.07,21.2029]
[1730551962877,17.6179792,165.12,165.07,21.2029]
[1730551963287,17.6179792,165.1,165.07,21.2029]
[1730551963480,17.6179792,165.09,165.04,32.9012792]
[1730551963680,17.6179792,165.09,165.05,6.18419]
[1730551964294,17.6179792,165.09,165.05,6.0587]
[1730551965298,17.6179792,165.07,165.03,21.2069]
[1730551965512,6.0565,165.11,165.03,21.2069]
[1730551965513,17.6179792,165.05,165.04,23.776884]
[1730551965798,17.6179792,165.07,165.03,21.2073]
[1730551966496,17.6179792,165.07,165.03,15.1478]
[1730551966676,17.6179792,165.07,165.03,21.2073]
[1730551967198,17.6179792,165.07,165.04,23.776884]
[1730551969698,6.0576,165.09,165.04,29.835684]
[1730551969699,17.6179792,165.08,165.04,29.835684]
[1730551971785,17.6179792,165.07,165.04,29.835684]
[1730551971999,23.6755792,165.08,165.04,29.835684]
[1730551972198,17.6179792,165.08,165.04,29.835684]
[1730551972596,23.6752792,165.09,165.04,47.4536632]
[1730551972788,17.6179792,165.08,165.04,29.835684]
[1730551974793,23.6752792,165.09,165.04,47.4536632]
[1730551975423,21.3404,165.14,165.06,41.3948632]
[1730551975424,17.6179792,165.11,165.06,41.3948632]
[1730551976903,17.6179792,165.11,165.06,47.4529632]
[1730551977494,17.6179792,165.1,165.06,29.834984]
[1730551977707,17.6179792,165.07,165.05,15.1469]
[1730551978013,17.6179792,165.07,165.04,23.776884]
[1730551978505,17.6179792,165.08,165.04,23.776884]
[1730551978709,23.6753792,165.09,165.04,41.3948632]
[1730551979486,23.6753792,165.09,165.05,6.0587]
[1730551980294,17.6179792,165.09,165.05,6.0587]
[1730551980496,17.6179792,165.11,165.06,41.3948632]
[1730551980699,17.6179792,165.12,165.07,17.6179792]
[1730551981395,17.6179792,165.12,165.08,6.0576]
[1730551981797,17.6179792,165.12,165.08,21.2017]
[1730551982001,21.7616,165.14,165.08,21.2017]